Cogmind - Beta 16 @@@ ROGUE MODE // 2025.11.08 @ 21:31:46 Player: Runagate Result: Destroyed by B-90 Cyclops with Nova Cannon Performance ------------- Evolutions (8) 4000 Regions Visited (19) 3800 Robots Destroyed (222) 1110 Value Destroyed (10245) 10245 Prototype IDs (11) 220 Alien Tech Used (0) 0 Bonus (5724) 5724 TOTAL SCORE: 25099 Bonus ------- High Alert Combat Kills 1182 Follower Combat Kills 2042 Entered Garrisons 1000 Used RIF Installer 1500 Cogmind --------- Core Integrity 0/1450 Matter 281/300 Energy 97/100 System Corruption 39% Temperature Cool (9) Movement Core (50) Location -2/Garrison Parts ------- > --- POWER (1) -------- (None) > --- PROPULSION (4) --- (None) > --- UTILITY (16) ----- (None) > --- WEAPON (2) ------- (None) > --- INVENTORY (5) ---- Experimental Biometal Heavy Treads Armored Huge Wheel Powered Hammer Peak State ------------ > --- POWER ------------ Light Particle Reactor > --- PROPULSION ------- Advanced Heavy Treads Advanced Heavy Treads > --- UTILITY ---------- Advanced Heat Sink Advanced Heat Sink Advanced Heat Sink Huge Storage Unit Advanced Force Field Improved Hacking Suite Relay Coupler [NC] Relay Coupler [Swarmer] Relay Coupler [Swarmer] Relay Coupler [Sentry] > --- WEAPON ----------- Ion Burst Cannon Remote Datajack > --- INVENTORY -------- Micro Antimatter Reactor Armored Treads Armored Huge Wheel Armored Huge Wheel Improved Sensor Array Reaction Control System Authchip [Storage] Authchip [Processor] Relay Coupler [NC] Relay Coupler [Brawler] Relay Coupler [Hunter] Relay Coupler [Heavy] Relay Coupler [Heavy] Shock Rifle Heavy Laser Variable Charge Gun Ion Burst Cannon Heavy Machine Gun Hypervelocity Railgun Missile Launcher Powered Hammer [Rating: 100] Favorites ----------- Power Micro Nuclear Core Engine Ion Engine Power Core Micro Nuclear Core Reactor Light Particle Reactor Propulsion Armored Wheel Treads Armored Treads Leg Biometal Leg Wheel Armored Wheel Hover Unit Combat Linear Gravjet Utility Huge Storage Unit Device Improved Heat Sink Storage Huge Storage Unit Processor Improved Signal Interpreter Hackware Hacking Suite Protection Hardened Medium Armor Plating Weapon Gatling Laser Energy Gun Gatling Laser Energy Cannon Advanced Beam Cannon Ballistic Gun Heavy Machine Gun Ballistic Cannon Heavy Mass Driver Launcher Missile Launcher Special Weapon Remote Datajack Impact Weapon Heavy Mace Slashing Weapon Blade Saw Special Melee Weapon Datajack Build | -11 -10 -9 -8 -8 -8 -7 -7 -7 -6 -6 -6 -5 -5 -5 -4 -4 -3 -2 -2 ------- Run | Yrd Mat Mat Mat Gar Mat Fac Gar Fac Fac Gar Fac Fac Was Fac Fac Gar Res Res Gar Slots Evolved 16 | . . 2 2 . . 2 . . 2 . . 2 . . 2 . 2 2 . Power . | . . . . . . . . . . . . . . . . . . . . Propulsion 2 | . . 2 . . . . . . . . . . . . . . . . . Utility 14 | . . . 2 . . 2 . . 2 . . 2 . . 2 . 2 2 . Weapon . | . . . . . . . . . . . . . . . . . . . . Parts Attached 242 | 9 8 27 7 8 18 7 13 24 1 42 8 3 1 33 . 5 6 22 . Power 28 | 2 2 3 2 2 1 1 . 2 . 5 1 . . 4 . . 1 2 . Engine 13 | 2 2 3 . . . . . 2 . 4 . . . . . . . . . Core 9 | . . . 2 2 1 1 . . . . 1 . . 2 . . . . . Reactor 6 | . . . . . . . . . . 1 . . . 2 . . 1 2 . Propulsion 61 | 2 . 14 1 2 6 1 2 5 . 10 . . 1 9 . . 1 7 . Treads 40 | 1 . 9 . 1 4 1 1 4 . 8 . . . 8 . . . 3 . Leg 5 | . . . . . . . . . . 2 . . . . . . . 3 . Wheel 15 | 1 . 5 1 1 2 . 1 1 . . . . 1 1 . . 1 . . Hover 1 | . . . . . . . . . . . . . . . . . . 1 . Flight . | . . . . . . . . . . . . . . . . . . . . Utility 84 | 3 2 3 3 1 6 4 5 11 1 18 6 1 . 13 . 2 2 3 . Device 32 | 2 1 . 2 1 . 2 2 2 1 8 1 . . 6 . 1 1 2 . Storage 5 | 1 1 . . . 1 . . 1 . . . . . . . . 1 . . Processor 7 | . . . . . . 1 . . . 1 . . . 4 . . . 1 . Hackware 26 | . . 1 1 . 3 . 1 7 . 5 4 1 . 2 . 1 . . . Protection 14 | . . 2 . . 2 1 2 1 . 4 1 . . 1 . . . . . Artifact . | . . . . . . . . . . . . . . . . . . . . Weapon 69 | 2 4 7 1 3 5 1 6 6 . 9 1 2 . 7 . 3 2 10 . Energy Gun 14 | . . 1 . 2 1 1 1 . . 3 . . . 3 . . . 2 . Energy Cannon 7 | . . 1 1 . 2 . 1 . . . . 2 . . . . . . . Ballistic Gun 31 | 2 4 3 . . 1 . 2 3 . 3 . . . 1 . 3 1 8 . Ballistic Cannon 2 | . . 1 . . . . . . . 1 . . . . . . . . . Launcher 2 | . . . . . . . 1 . . 1 . . . . . . . . . Special Weapon 7 | . . . . . 1 . . 2 . 1 . . . 3 . . . . . Impact Weapon 3 | . . . . 1 . . . 1 . . 1 . . . . . . . . Slashing Weapon 1 | . . . . . . . 1 . . . . . . . . . . . . Piercing Weapon . | . . . . . . . . . . . . . . . . . . . . Special Melee Weapon 2 | . . 1 . . . . . . . . . . . . . . 1 . . Unidentified Prototypes 7 | . . 2 . . . . . . . 1 . . . 1 . . 1 2 . Corrupted Parts 9 | . . . . . . . . . . . . . . 1 . . . 8 . System Corruption 43 | . . . . . . . . . . . . . . 4 . . . 39 . Parts Lost 69 | . . . . 2 4 . 3 1 . 16 . . 1 23 . 17 . 2 . Power 9 | . . . . . 1 . . . . 2 . . . 4 . 1 . 1 . Propulsion 19 | . . . . 1 2 . 3 . . 4 . . . 5 . 4 . . . Utility 25 | . . . . 1 . . . 1 . 6 . . 1 9 . 7 . . . Weapon 16 | . . . . . 1 . . . . 4 . . . 5 . 5 . 1 . Highest Loss Streak 10 | . . . . 1 2 . 1 1 . 5 . . 1 4 . 10 . 2 . To Critical Strikes 2 | . . . . . . . . . . . . . . 1 . 1 . . . Average Backups 21 | 3 9 22 24 24 24 24 24 24 24 22 23 22 22 20 20 20 3 9 3 Power 1 | . 1 1 2 1 1 1 1 1 1 1 2 2 2 . 1 . . . . Propulsion 2 | 1 2 3 6 3 3 4 2 . 1 . 1 3 3 3 1 1 . 3 2 Utility 10 | . 2 8 6 10 12 13 14 14 12 10 12 9 9 8 8 8 1 1 . Weapon 6 | . 2 7 8 6 6 5 5 7 8 7 6 7 7 7 9 8 2 3 1 Tool/Special . | . . . . . . . . . . . . . . . . . . . . Unused Backups 42 | . 1 3 1 10 2 1 4 2 . 3 4 . . . . 8 . 3 . Power 2 | . . . . . . . . . . 1 . . . . . 1 . . . Propulsion 5 | . . 1 . . 1 . . . . . 2 . . . . . . 1 . Utility 21 | . . 1 1 6 . . 4 1 . . . . . . . 7 . 1 . Weapon 12 | . 1 1 . 3 1 1 . 1 . 2 2 . . . . . . . . Tool/Special 2 | . . . . 1 . . . . . . . . . . . . . 1 . Average Slot Usage (%) 89 | . 100 99 94 99 97 99 96 94 81 91 85 82 78 77 84 64 13 27 . Engine 3 | . 14 11 7 . . . . 4 6 4 . . . . . . . . . Core 2 | . . . 1 9 7 7 7 2 . . . . . 1 . . . . . Reactor 1 | . . . . . . . . . . 1 5 5 5 3 5 4 . 3 . Treads 15 | . 14 21 10 9 16 15 15 17 13 20 13 11 7 12 21 15 . 5 . Wheel 9 | . 14 22 25 26 18 15 11 7 6 1 . . 2 2 . . 4 1 . Device 7 | . 14 4 5 13 8 8 12 2 1 10 5 5 5 9 10 7 . 4 . Storage 7 | . 14 11 9 9 9 7 7 7 6 6 6 5 5 5 5 4 1 3 . Processor 2 | . . . . . . 5 7 5 . . . . . 4 15 10 . . . Hackware 18 | . . . 6 9 13 23 14 25 26 28 33 35 35 22 15 12 . . . Protection 3 | . . 6 9 3 4 . 2 3 6 4 6 5 2 . . . . . . Energy Gun 2 | . . . . 10 8 11 5 . . 2 . . . 2 . . . . . Energy Cannon 1 | . . 6 15 6 2 . 4 . . . . 2 . 1 5 2 . . . Ballistic Gun 5 | . 28 10 2 . 1 . 1 8 7 2 . . . . . 5 3 5 . Special Weapon 1 | . . . . . . . . 3 4 1 6 5 5 1 5 . . . . Impact Weapon 1 | . . . . . . 1 2 . . . 6 2 5 2 . . . . . Peak Build Rating 100 | 7 10 22 31 37 37 44 46 51 56 85 89 93 92 100 85 90 45 81 3 Average Rating 48 | 5 7 18 27 34 34 41 43 46 52 56 83 92 84 71 85 67 22 62 3 On Entrance 44 | . 7 10 22 31 37 32 43 40 51 56 80 89 92 79 85 85 1 45 3 Avg Prop Armor Cover (%) 16 | 12 11 14 7 9 18 22 20 19 13 12 . . 17 16 . . . 6 . Naked Turns 140 | . . . . . . . . . . . . . . . . 40 5 53 42 Heaviest Build 131 | 14 89 99 99 100 98 95 106 107 116 116 123 128 123 131 102 102 36 47 . Greatest Support 170 | 20 20 46 36 36 40 24 24 60 28 140 140 140 140 140 110 110 48 170 3 Greatest Overweight (x) 34 | 1 8 4 4 7 4 4 8 8 4 6 . . 4 34 . 29 1 1 . Average Overweight (x) 2 | . 2 3 2 2 2 3 5 4 3 1 . . 2 . . . . . . Largest Inventory Capacity 25 | 8 25 25 25 25 25 25 25 25 25 25 25 25 25 25 25 25 15 15 5 Average Capacity 23 | 7 12 25 25 25 25 25 25 25 25 25 25 25 25 25 25 22 7 14 5 Most Carried 25 | 5 14 25 25 25 25 25 25 25 25 25 25 24 24 25 21 25 5 15 5 Average Carried 22 | 3 9 22 24 24 24 24 24 24 24 23 24 24 23 21 21 21 3 11 5 Final Capacity 25 | 8 25 25 25 25 25 25 25 25 25 25 25 25 25 25 25 5 15 5 5 Final Carried 25 | 5 14 25 25 25 24 25 25 25 21 25 25 24 24 21 21 5 4 5 5 Class Distribution -------------------- 72% | Bothacker-Mutant 24% | Mutant Dominant Class ---------------- Mutant | -10/Materials Mutant | -9/Materials Mutant | -8/Materials Mutant | -8/Garrison Bothacker-Mutant | -8/Materials Bothacker-Mutant | -7/Factory Bothacker-Mutant | -7/Garrison Bothacker-Mutant | -7/Factory Bothacker-Mutant | -6/Factory Bothacker-Mutant | -6/Garrison Bothacker-Mutant | -6/Factory Bothacker-Mutant | -5/Factory Bothacker-Mutant | -5/Waste Bothacker-Mutant | -5/Factory Bothacker-Mutant | -4/Factory Bothacker-Mutant | -4/Garrison Mutant | -3/Research Mutant | -2/Research Mutant | -2/Garrison Resources | -11 -10 -9 -8 -8 -8 -7 -7 -7 -6 -6 -6 -5 -5 -5 -4 -4 -3 -2 -2 ----------- Run | Yrd Mat Mat Mat Gar Mat Fac Gar Fac Fac Gar Fac Fac Was Fac Fac Gar Res Res Gar Matter Collected 6917 | 346 289 988 94 269 435 141 219 980 . 1287 225 . . 845 . 252 . 547 . Remotely 5 | . . . . . . . . . . . . . . . . . . 5 . Salvage Created 8789 | 185 385 1635 162 662 888 183 669 384 . 1275 106 61 . 1555 . 101 . 538 . Parts 444 | 20 40 95 13 33 47 4 40 13 . 39 4 1 . 71 . 1 . 23 . Haulers Intercepted 8 | . 2 3 . . 2 . . . . . . . . 1 . . . . . Recyclers Shooed 6 | . . 2 . . . . . . . . . . . 1 . . . 3 . Parts Field Recycled . | . . . . . . . . . . . . . . . . . . . . Retrieved Matter . | . . . . . . . . . . . . . . . . . . . . Parts Self-Destructed . | . . . . . . . . . . . . . . . . . . . . Prevented . | . . . . . . . . . . . . . . . . . . . . Parts Restored . | . . . . . . . . . . . . . . . . . . . . Kills | -11 -10 -9 -8 -8 -8 -7 -7 -7 -6 -6 -6 -5 -5 -5 -4 -4 -3 -2 -2 ------- Run | Yrd Mat Mat Mat Gar Mat Fac Gar Fac Fac Gar Fac Fac Was Fac Fac Gar Res Res Gar Combat Hostiles Destroyed 175 | . 10 38 2 18 13 3 17 7 . 25 2 1 . 34 . 2 . 3 . Melee 7 | . . . . . . . . . . . 2 . . 5 . . . . . Guns 92 | . 10 14 . 12 12 1 6 7 . 18 . . . 10 . 1 . 1 . Cannons 48 | . . 24 2 5 1 . 8 . . 1 . 1 . 5 . 1 . . . AOE 21 | . . . . . . . 2 . . 5 . . . 13 . . . 1 . Classes Destroyed 20 | 3 4 4 1 2 1 . 1 . . 1 . . . 2 . 1 . . . Worker 10 | 1 . 5 1 . 2 . . . . . 1 . . . . . . . . Builder 8 | . . . 1 . 1 . . . . . 1 . . 4 . . . 1 . Tunneler 8 | 5 1 . . . 1 . . . . . . . . 1 . . . . . Hauler 8 | . 2 3 . . 2 . . . . . . . . 1 . . . . . Recycler 9 | 1 . 2 . . 2 1 . . . . . . . 1 . . . 2 . Operator 2 | . . 1 . . . . . 1 . . . . . . . . . . . Watcher 7 | . 3 1 . . 2 . . . . . . . . 1 . . . . . Swarmer 31 | . 9 7 . 3 2 . 3 . . . 1 . . 6 . . . . . Cutter 4 | . . . . 2 . . 2 . . . . . . . . . . . . Grunt 78 | . 1 20 2 6 8 2 3 7 . 16 . 1 . 12 . . . . . Brawler 1 | . . . . . 1 . . . . . . . . . . . . . . Duelist 4 | . . 1 . . . . . . . 1 1 . . 1 . . . . . Protector 2 | . . 1 . . . . . . . . . . . 1 . . . . . Sentry 23 | . . 9 . 4 2 . . . . 6 . . . 1 . . . 1 . Demolisher 2 | . . . . . . . . . . . . . . 2 . . . . . Hunter 10 | . . . . . . . 6 . . . . . . 1 . 1 . 2 . Programmer 12 | . . . . 3 . 1 3 1 . . . . . 4 . . . . . Behemoth 1 | . . . . . . . . . . . . . . . . 1 . . . Executioner 2 | . . . . . . . . . . 2 . . . . . . . . . Assembled 6 | . . . . . . . . . . . . . . 6 . . . . . Best Kill Streak 12 | 4 4 8 4 3 12 2 3 2 . 6 2 1 . 8 . 1 . 3 . Combat Bots Only 6 | . 3 6 2 3 3 2 3 2 . 6 1 1 . 6 . 1 . 2 . Max Kills in Single Turn 6 | 1 1 1 1 1 2 1 2 1 . 1 1 1 . 6 . 1 . 1 . Gunslinging . | . . . . . . . . . . . . . . . . . . . . Exploded 4 | . . . . . . . 2 . . 1 . . . 4 . . . 1 . Melee 1 | . . . . . . . . . . . 1 . . 1 . . . . . Uniques/NPCs Destroyed . | . . . . . . . . . . . . . . . . . . . . Combat | -11 -10 -9 -8 -8 -8 -7 -7 -7 -6 -6 -6 -5 -5 -5 -4 -4 -3 -2 -2 -------- Run | Yrd Mat Mat Mat Gar Mat Fac Gar Fac Fac Gar Fac Fac Was Fac Fac Gar Res Res Gar Hostile Shots Fired 1629 | . 49 130 2 88 52 13 115 93 . 383 15 . 2 331 . 161 6 125 64 Missed 476 | . 8 41 1 21 10 3 32 35 . 119 5 . . 87 . 46 1 42 25 Hits 1153 | . 41 89 1 67 42 10 83 58 . 264 10 . 2 244 . 115 5 83 39 Melee 27 | . . 1 . 11 1 . 1 . . 9 . . 2 2 . . . . . Projectile 1126 | . 41 88 1 56 41 10 82 58 . 255 10 . . 242 . 115 5 83 39 AOE 18 | . . . . 1 . 1 3 . . . . . . 13 . . . . . Critical Strikes 44 | . 1 2 . 7 2 . 1 2 . 3 2 . 1 12 . 9 . 2 . Part Disruptions 1 | . . . . . . . . . . . . . . 1 . . . . . Damage Taken 19237 | 3 377 1068 22 1002 657 191 1378 809 . 3090 247 . 47 4850 . 2426 129 1918 1023 Core 4296 | . 97 110 . 139 83 29 153 61 . 383 14 . 23 726 . 1006 . 449 1023 Absorbed by Shields 1038 | . . . . 19 . . 74 . . 396 . . 48 348 . 84 . . 69 Redirected to Shielding 6 | . . . . . . . . . . 6 . . . . . . . . . Regen/Repaired (Parts) 147 | . . 46 . . 88 . . 4 . . 9 . . . . . . . . Core Remaining (%) 60 | 100 61 72 . . 59 . . 65 . . 53 . . 25 . 12 100 . . Volleys Fired 666 | 14 43 109 7 62 57 3 57 55 . 99 25 9 . 82 . 25 . 19 . Largest 2 | 2 2 2 2 2 2 2 2 2 . 2 1 1 . 2 . 2 . 2 . Hottest 325 | 40 40 124 136 160 148 160 149 78 . 149 5 100 . 325 . 128 . 100 . Shots Fired 1135 | 28 86 202 14 118 98 6 95 83 . 175 25 9 . 108 . 49 . 39 . Gun 749 | 28 86 96 . 57 85 6 37 66 . 154 . . . 56 . 39 . 39 . Cannon 289 | . . 106 14 61 9 . 57 . . 9 . 8 . 15 . 10 . . . Launcher 18 | . . . . . . . 1 . . 8 . . . 9 . . . . . Special 79 | . . . . . 4 . . 17 . 4 25 1 . 28 . . . . . Kinetic 561 | 28 86 142 . . 36 . . 62 . 132 . . . 9 . 39 . 27 . Thermal 433 | . . 60 14 118 62 6 62 . . 31 . 8 . 62 . 10 . . . Explosive 18 | . . . . . . . 1 . . 8 . . . 9 . . . . . Electromagnetic 48 | . . . . . . . 32 4 . . . . . . . . . 12 . Robot Hit Streak 33 | 11 7 18 7 19 10 6 15 7 . 33 6 5 . 15 . 17 . 8 . Robot Miss Streak 8 | 1 3 7 1 5 8 2 3 4 . 5 4 . . 5 . 3 . 3 . Penetration Max 1 | . . . . . . . . 1 . 1 . . . 1 . . . 1 . Secondary Targets 7 | . 1 . . . 1 . . . . 3 . . . 2 . . . . . Max Gunslinging Chain 1 | . 1 . . . 1 . . . . 1 . . . 1 . . . . . Shots Hit Robots 833 | 19 54 144 10 66 75 15 66 69 . 140 21 2 . 91 . 36 . 25 . Core Hits 504 | 11 24 100 6 36 47 5 33 22 . 99 3 1 . 90 . 12 . 15 . Critical Kills 5 | . . . . 1 . . . 1 . . . . . 2 . . . 1 . Critical Parts Destroyed 7 | . . . . . . 1 . . . . 1 . . 4 . 1 . . . Critical Strikes 16 | . . 1 . 1 . 1 . 2 . 1 1 . . 6 . 2 . 1 . Meltdown 1 | . . . . 1 . . . . . . . . . . . . . . . Destroy 8 | . . 1 . . . . . 1 . . . . . 3 . 2 . 1 . Blast 1 | . . . . . . . . . . 1 . . . . . . . . . Smash 5 | . . . . . . 1 . . . . 1 . . 3 . . . . . Sever 1 | . . . . . . . . 1 . . . . . . . . . . . Melee Attacks 139 | . . . . 6 14 26 12 23 . 3 13 3 . 39 . . . . . Impact 107 | . . . . 4 8 19 8 10 . 3 13 3 . 39 . . . . . Slashing 3 | . . . . . . . 1 2 . . . . . . . . . . . Piercing . | . . . . . . . . . . . . . . . . . . . . Sneak Attacks 19 | . . . . . 3 5 . 10 . . 1 . . . . . . . . Combat Hostiles . | . . . . . . . . . . . . . . . . . . . . Follow-up Attacks . | . . . . . . . . . . . . . . . . . . . . Damage Inflicted 19869 | 180 547 2404 218 1455 1461 324 1843 1051 . 4139 431 41 . 4067 . 778 . 930 . Guns 10507 | 174 547 795 . 948 1316 101 659 1008 . 2837 . . . 1012 . 481 . 629 . Cannons 4778 | . . 1581 205 507 145 . 988 . . 426 . 41 . 606 . 279 . . . Explosions 2788 | . . . . . . . 179 . . 872 . . . 1461 . . . 276 . Melee 1613 | . . . . . . 223 . 36 . . 406 . . 948 . . . . . Ramming 183 | 6 . 28 13 . . . 17 7 . 4 25 . . 40 . 18 . 25 . Kinetic 7511 | 174 547 1573 . . 553 . . 953 . 2646 . . . 163 . 481 . 421 . Thermal 7087 | . . 803 205 1455 908 101 947 . . 617 . 41 . 1455 . 279 . 276 . Explosive 2134 | . . . . . . . 133 . . 872 . . . 1129 . . . . . Electromagnetic 1341 | . . . . . . . 746 55 . . . . . 332 . . . 208 . Impact 1577 | . . . . . . 223 . . . . 406 . . 948 . . . . . Slashing 36 | . . . . . . . . 36 . . . . . . . . . . . Piercing . | . . . . . . . . . . . . . . . . . . . . Highest Corruption 39 | . . 2 . 6 6 . 2 5 . . 2 . 15 21 . 6 . 39 39 Average Corruption 7 | . . 2 . 5 6 . 1 3 . . 1 . 9 17 . 3 . 31 39 Corruption Purged 11 | . . . . . . . 2 . . . 2 . . 7 . . . . . Corruption Blocked 4 | . . . . . . . . . . . . . . 4 . . . . . Effects 257 | . . 18 . 26 47 . 2 64 . . 2 . 5 81 . . . 8 4 Message Errors 71 | . . 5 . 5 17 . 1 16 . . 1 . 1 22 . . . 3 . Matter Fused 55 | . . 3 . 5 9 . . 17 . . . . 1 19 . . . . 1 Heat Flow Errors 27 | . . 2 . 3 3 . . 9 . . . . . 8 . . . 2 . Energy Discharges 25 | . . . . 2 2 . . 8 . . 1 . 2 9 . . . . 1 Parts Rejected 7 | . . . . 2 2 . . . . . . . . 3 . . . . . Parts Fused 2 | . . . . 1 1 . . . . . . . . . . . . . . Data Loss (minor) 28 | . . 5 . 5 3 . . 6 . . . . 1 8 . . . . . Data Loss (major) 18 | . . 3 . 1 2 . 1 5 . . . . . 6 . . . . . Misfires 8 | . . . . . 4 . . 2 . . . . . 2 . . . . . Alerts 7 | . . . . 1 3 . . . . . . . . 1 . . . 2 . Misdirections 3 | . . . . . . . . . . . . . . . . . . 1 2 Weapon Failures 6 | . . . . 1 1 . . 1 . . . . . 3 . . . . . Overload Shots 8 | . . . . . . . . . . . . . . 8 . . . . . Overflow Damage 529 | . . . . 1 . 72 16 . . . 160 . . 230 . . . 50 . Projectiles 15 | . . . . 1 . . . . . . . . . 14 . . . . . Explosions 67 | . . . . . . . 16 . . . . . . 1 . . . 50 . Melee 447 | . . . . . . 72 . . . . 160 . . 215 . . . . . Knockbacks 30 | . . 21 . . . 1 . . . . 2 . . 6 . . . . . Impact 10 | . . 1 . . . 1 . . . . 2 . . 6 . . . . . Kinetic 19 | . . 19 . . . . . . . . . . . . . . . . . Secondary 1 | . . 1 . . . . . . . . . . . . . . . . . Self-Inflicted Damage 263 | 3 . 6 6 . . . 112 . . 68 . . . 50 . 18 . . . Shots 7 | . . . . . . . 2 . . 2 . . . 3 . . . . . Rammed 19 | 1 . 3 1 . . . 5 1 . 1 1 . . 2 . . . 4 . Targets Rammed 20 | 1 . 4 1 . . . 5 1 . 1 1 . . 2 . . . 4 . Kicked . | . . . . . . . . . . . . . . . . . . . . Crushed 1 | . . 1 . . . . . . . . . . . . . . . . . Highest Temperature 524 | . 12 249 69 524 214 36 354 259 . 13 4 96 . 396 . 117 . 197 . Average Temperature 74 | . 7 71 27 84 49 24 83 67 . 7 4 37 . 115 . 52 . 103 . Received Heat Transfer 3601 | . 48 384 9 216 369 102 170 144 . 919 36 . . 681 . 307 18 27 171 Effects 7 | . . . . 4 . . 1 . . . . . . 2 . . . . . Shutdowns 3 | . . . . 2 . . . . . . . . . 1 . . . . . Energy Bleed 1 | . . . . 1 . . . . . . . . . . . . . . . Short Circuit 1 | . . . . . . . 1 . . . . . . . . . . . . Damage (minor) 2 | . . . . 1 . . . . . . . . . 1 . . . . . Siege Activations . | . . . . . . . . . . . . . . . . . . . . Martial Activations . | . . . . . . . . . . . . . . . . . . . . Shielding Activations . | . . . . . . . . . . . . . . . . . . . . Robots Disrupted 1 | . . . . . . . . . . . . . . 1 . . . . . Combat Hostiles 1 | . . . . . . . . . . . . . . 1 . . . . . Robots Corrupted 7 | . . . . . . 2 1 . . . 1 . . 2 . . . 1 . Combat Hostiles 5 | . . . . . . 2 1 . . . . . . 1 . . . 1 . Parts Fried 9 | . . . . . . 3 1 . . . . . . 4 . . . 1 . Impact Corruptions 24 | . . . . . . 4 . . . . 7 . . 13 . . . . . Robots Melted 2 | . . . . 1 . . . . . 1 . . . . . . . . . Combat Hostiles 2 | . . . . 1 . . . . . 1 . . . . . . . . . Parts Melted 26 | . . 1 . 9 2 1 2 . . 9 . . . 2 . . . . . Heat Transferred 12551 | . . 1427 370 2897 1984 200 1756 . . 1318 . 50 . 2074 . 325 . 150 . Parts Sabotaged . | . . . . . . . . . . . . . . . . . . . . Parts Stolen . | . . . . . . . . . . . . . . . . . . . . Parts Stripped . | . . . . . . . . . . . . . . . . . . . . Power Chain Reactions 2 | . . . . . . . 1 . . . . . . . . . . 1 . Alert | -11 -10 -9 -8 -8 -8 -7 -7 -7 -6 -6 -6 -5 -5 -5 -4 -4 -3 -2 -2 ------- Run | Yrd Mat Mat Mat Gar Mat Fac Gar Fac Fac Gar Fac Fac Was Fac Fac Gar Res Res Gar Maximum Alert Level 5 | . . 2 1 3 2 . 2 3 1 5 4 2 1 2 . 1 . . . Low Security (%) 32 | 100 100 39 . 6 . 100 17 53 . . . . 73 4 100 45 100 100 100 Level 1 25 | . . 24 100 40 53 . 30 35 100 6 . . 26 47 . 54 . . . Level 2 21 | . . 36 . 30 46 . 52 10 . 13 . 100 . 48 . . . . . Level 3 13 | . . . . 22 . . . . . 37 81 . . . . . . . . Level 4 5 | . . . . . . . . . . 33 18 . . . . . . . . Level 5 1 | . . . . . . . . . . 9 . . . . . . . . . High Security . | . . . . . . . . . . . . . . . . . . . . Max Security . | . . . . . . . . . . . . . . . . . . . . Peak Influence 1826 | 10 70 674 290 924 548 128 633 742 362 1826 1165 695 217 535 189 261 101 85 . Initial 958 | . . 4 280 175 450 128 37 326 362 246 958 569 217 32 189 111 101 . . Average 428 | 2 22 308 267 489 405 29 405 198 358 1005 1027 629 137 379 176 207 54 17 . Influence Increases 9284 | 35 296 1228 60 769 420 104 656 1333 . 1780 809 162 10 1220 . 259 . 143 . Destroy 0b10 Robot/C 4420 | . 200 740 40 360 260 60 420 580 . 640 300 60 . 560 . 140 . 60 . Destroy 0b10 Robot/NC 335 | 35 30 65 10 . 60 5 . 35 . 5 25 . . 50 . . . 15 . Destroy Leader 828 | . 50 208 10 20 70 20 30 188 . 30 56 10 . 96 . 20 . 20 . Allied During Kill 949 | . . . . . 5 4 13 288 . 166 381 70 . 6 . 16 . . . Trap Triggered on 0b10 10 | . . 10 . . . . . . . . . . . . . . . . . Successful Hack 140 | . 14 25 . 24 9 . . 34 . 12 6 . . 16 . . . . . Disable Machine 540 | . . 60 . . . 15 15 180 . . . . . 255 . 15 . . . Anti-Garrison Action 1300 | . . . . 250 . . 100 . . 750 . . . 150 . 50 . . . Destroy Structure 372 | . 2 . . 25 1 . 63 13 . 102 26 22 10 72 . 18 . 18 . Lose Combat Pursuer 390 | . . 120 . 90 15 . 15 15 . 75 15 . . 15 . . . 30 . Influence Decreases 9284 | 35 284 575 455 115 1060 335 86 1215 389 306 1473 703 584 881 227 238 179 144 . Entered New Map 4121 | . . 8 385 95 474 156 16 297 379 106 868 593 404 15 197 48 79 1 . Time Decay 3963 | 35 284 557 70 . 506 179 . 738 10 . 565 110 70 586 30 . 100 123 . Lost Part 690 | . . . . 20 40 . 30 10 . 160 . . 10 230 . 170 . 20 . Lost Ally 510 | . . 10 . . 40 . 40 170 . 40 40 . 100 50 . 20 . . . Squads Dispatched 40 | . 1 6 1 . 2 2 . 13 . . 5 . . 8 . . . 2 . Investigation 5 | . . 1 . . . . . 3 . . . . . 1 . . . . . Extermination 16 | . . . . . . 1 . 9 . . 2 . . 3 . . . 1 . Reinforcement 15 | . 1 4 . . 2 1 . 1 . . 3 . . 2 . . . 1 . Assault 3 | . . 1 . . . . . . . . . . . 2 . . . . . Garrison 1 | . . . 1 . . . . . . . . . . . . . . . . Intercept . | . . . . . . . . . . . . . . . . . . . . Searches Triggered . | . . . . . . . . . . . . . . . . . . . . Construction Impeded 3 | . . . . . . . . . . . . . . 2 . . . 1 . Haulers Reinforced 1 | . . . . . . . . . . . 1 . . . . . . . . Active Scanning Responses . | . . . . . . . . . . . . . . . . . . . . Cargo Convoy Interrupts 1 | . . . . . . . . . . . . . . 1 . . . . . Stealth | -11 -10 -9 -8 -8 -8 -7 -7 -7 -6 -6 -6 -5 -5 -5 -4 -4 -3 -2 -2 --------- Run | Yrd Mat Mat Mat Gar Mat Fac Gar Fac Fac Gar Fac Fac Was Fac Fac Gar Res Res Gar Distress Signals 20 | . 1 4 . . 6 . . 4 . . . . . 3 . . . 2 . Communications Jammed . | . . . . . . . . . . . . . . . . . . . . Distress Signals . | . . . . . . . . . . . . . . . . . . . . Times Spotted 370 | . 14 59 5 21 25 5 26 55 . 37 19 2 6 64 . 11 1 7 13 Peak Tracking Total 9 | . 3 6 3 4 6 2 5 4 . 7 3 2 5 6 . 5 2 3 9 Tactical Retreats 15 | . . 4 . 3 1 . 1 1 . 2 1 . . 1 . . . 1 . Traps | -11 -10 -9 -8 -8 -8 -7 -7 -7 -6 -6 -6 -5 -5 -5 -4 -4 -3 -2 -2 ------- Run | Yrd Mat Mat Mat Gar Mat Fac Gar Fac Fac Gar Fac Fac Was Fac Fac Gar Res Res Gar Traps Triggered 27 | . 1 1 . 4 . . 2 4 . 8 1 1 . 2 . 2 . . 1 Indirectly 1 | . . . . . . . . . . . . . . 1 . . . . . Trap Hack Attempts 11 | . . 11 . . . . . . . . . . . . . . . . . Triggered . | . . . . . . . . . . . . . . . . . . . . Disarmed . | . . . . . . . . . . . . . . . . . . . . Reprogrammed 1 | . . 1 . . . . . . . . . . . . . . . . . Reused 1 | . . 1 . . . . . . . . . . . . . . . . . Traps Extracted . | . . . . . . . . . . . . . . . . . . . . Installed . | . . . . . . . . . . . . . . . . . . . . Triggered 1 | . . 1 . . . . . . . . . . . . . . . . . Machines | -11 -10 -9 -8 -8 -8 -7 -7 -7 -6 -6 -6 -5 -5 -5 -4 -4 -3 -2 -2 ---------- Run | Yrd Mat Mat Mat Gar Mat Fac Gar Fac Fac Gar Fac Fac Was Fac Fac Gar Res Res Gar Machines Disabled 49 | . . 4 . 2 . 1 3 12 . 7 . . . 18 . 2 . . . Max in Single Turn 9 | . . 1 . 1 . 1 1 1 . 2 . . . 9 . 1 . . . Garrison Access 6 | . . . . . 1 1 . 2 . . 1 . . 1 . . . . . Garrison Relay 9 | . . . . 2 . . 2 . . 4 . . . . . 1 . . . Phase Generator 1 | . . . . . . . . . . 1 . . . . . . . . . Machines Repaired . | . . . . . . . . . . . . . . . . . . . . Machines Dismantled . | . . . . . . . . . . . . . . . . . . . . Machines Sabotaged . | . . . . . . . . . . . . . . . . . . . . Overloaded Fab Kills . | . . . . . . . . . . . . . . . . . . . . Hacking | -11 -10 -9 -8 -8 -8 -7 -7 -7 -6 -6 -6 -5 -5 -5 -4 -4 -3 -2 -2 --------- Run | Yrd Mat Mat Mat Gar Mat Fac Gar Fac Fac Gar Fac Fac Was Fac Fac Gar Res Res Gar Machines Accessed 54 | . 8 6 1 2 8 2 2 13 1 2 4 1 . 1 1 1 . 1 . Terminals 36 | . 8 5 . 2 6 . 2 7 . 2 2 1 . . . 1 . . . Fabricators 4 | . . . . . . . . 2 . . 1 . . 1 . . . . . Repair Stations 3 | . . 1 . . 1 . . 1 . . . . . . . . . . . Recycling Units . | . . . . . . . . . . . . . . . . . . . . Scanalyzers 1 | . . . . . . . . 1 . . . . . . . . . . . Garrison Access 10 | . . . 1 . 1 2 . 2 1 . 1 . . . 1 . . 1 . Total Hacks 121 | . 23 14 1 7 19 4 4 24 2 3 12 1 . 2 2 1 . 2 . Successful 70 | . 14 6 1 2 11 4 1 13 2 2 9 . . 1 2 . . 2 . Failed 51 | . 9 8 . 5 8 . 3 11 . 1 3 1 . 1 . 1 . . . Catastrophic 5 | . . 1 . . . . . 1 . . 1 1 . . . 1 . . . Database Lockouts . | . . . . . . . . . . . . . . . . . . . . Manual 64 | . 22 9 . . 15 . . 12 . . 5 1 . . . . . . . Terminals 81 | . 23 11 . 7 15 . 4 11 . 3 5 1 . . . 1 . . . Fabricators 12 | . . . . . . . . 5 . . 5 . . 2 . . . . . Repair Stations 6 | . . 3 . . 2 . . 1 . . . . . . . . . . . Recycling Units . | . . . . . . . . . . . . . . . . . . . . Scanalyzers 3 | . . . . . . . . 3 . . . . . . . . . . . Garrison Access 19 | . . . 1 . 2 4 . 4 2 . 2 . . . 2 . . 2 . Terminal Hacks 11 | . 3 . . 2 . . 1 2 . 2 1 . . . . . . . . Part Schematic 1 | . . . . . . . . . . . 1 . . . . . . . . Robot Schematic 2 | . . . . . . . . 2 . . . . . . . . . . . Prototype ID Bank 1 | . 1 . . . . . . . . . . . . . . . . . . Emergency Access Points 2 | . . . . 1 . . . . . 1 . . . . . . . . . Terminal Index 1 | . 1 . . . . . . . . . . . . . . . . . . Hauler Manifests 1 | . 1 . . . . . . . . . . . . . . . . . . Garrison Registry 2 | . . . . 1 . . 1 . . . . . . . . . . . . Patrol Navigation 1 | . . . . . . . . . . 1 . . . . . . . . . Fabricator Hacks 9 | . . . . . . . . 4 . . 4 . . 1 . . . . . Load Schematic 5 | . . . . . . . . 2 . . 3 . . . . . . . . Build 4 | . . . . . . . . 2 . . 1 . . 1 . . . . . Repair Station Hacks 4 | . . 2 . . 2 . . . . . . . . . . . . . . Scan Component 2 | . . 1 . . 1 . . . . . . . . . . . . . . Repair 2 | . . 1 . . 1 . . . . . . . . . . . . . . Recycling Unit Hacks . | . . . . . . . . . . . . . . . . . . . . Scanalyzer 2 | . . . . . . . . 2 . . . . . . . . . . . Insert Component 1 | . . . . . . . . 1 . . . . . . . . . . . Analyze 1 | . . . . . . . . 1 . . . . . . . . . . . Garrison Access Hacks 19 | . . . 1 . 2 4 . 4 2 . 2 . . . 2 . . 2 . Unlock Access 5 | . . . 1 . . 1 . . 1 . . . . . 1 . . 1 . Seal Access 5 | . . . . . 1 1 . 2 . . 1 . . . . . . . . Coupler Status 9 | . . . . . 1 2 . 2 1 . 1 . . . 1 . . 1 . Unauthorized Hacks 25 | . 11 4 . . 7 . . 1 . . 2 . . . . . . . . Terminals 24 | . 11 4 . . 7 . . . . . 2 . . . . . . . . Assimilate 4 | . 2 2 . . . . . . . . . . . . . . . . . Botnet 5 | . 3 . . . 1 . . . . . 1 . . . . . . . . Operators 4 | . 1 1 . . 1 . . . . . 1 . . . . . . . . Skim 11 | . 5 1 . . 5 . . . . . . . . . . . . . . Fabricators . | . . . . . . . . . . . . . . . . . . . . Repair Stations 1 | . . . . . . . . 1 . . . . . . . . . . . Mechanics 1 | . . . . . . . . 1 . . . . . . . . . . . Recycling Units . | . . . . . . . . . . . . . . . . . . . . Scanalyzers . | . . . . . . . . . . . . . . . . . . . . Garrison Access . | . . . . . . . . . . . . . . . . . . . . Data Cores Recovered . | . . . . . . . . . . . . . . . . . . . . Used . | . . . . . . . . . . . . . . . . . . . . Hacking Detections 41 | . 7 5 . 2 5 1 2 11 . 1 2 1 . 1 1 1 . 1 . Full Trace Events 3 | . . 1 . 1 . . . 1 . . . . . . . . . . . Feedback Events . | . . . . . . . . . . . . . . . . . . . . Feedback Blocked . | . . . . . . . . . . . . . . . . . . . . Robot Schematics Acquired 2 | . . . . . . . . 2 . . . . . . . . . . . Robots Built 5 | . . . . . . . . 4 . . . . . 1 . . . . . Authchips 1 | . . . . . . . . 1 . . . . . . . . . . . Time 272 | . . . . . . . . 232 . . . . . 40 . . . . . Total Robot Build Rating 13 | . . . . . . . . 12 . . . . . 1 . . . . . Part Schematics Acquired 2 | . . . . . . . . 1 . . 1 . . . . . . . . Parts Built 2 | . . . . . . . . . . . 2 . . . . . . . . Authchips 1 | . . . . . . . . . . . 1 . . . . . . . . Time 42 | . . . . . . . . . . . 42 . . . . . . . . Total Part Build Rating 8 | . . . . . . . . . . . 8 . . . . . . . . Part Studies Acquired . | . . . . . . . . . . . . . . . . . . . . Parts Repaired 2 | . . 1 . . 1 . . . . . . . . . . . . . . Time 64 | . . 32 . . 32 . . . . . . . . . . . . . . Parts Recycled . | . . . . . . . . . . . . . . . . . . . . Recycled Matter . | . . . . . . . . . . . . . . . . . . . . Retrieved Matter . | . . . . . . . . . . . . . . . . . . . . Retrieved Components . | . . . . . . . . . . . . . . . . . . . . Parts Scanalyzed 1 | . . . . . . . . 1 . . . . . . . . . . . Part Schematics Acquired 1 | . . . . . . . . 1 . . . . . . . . . . . Parts Damaged . | . . . . . . . . . . . . . . . . . . . . Bothacking | -11 -10 -9 -8 -8 -8 -7 -7 -7 -6 -6 -6 -5 -5 -5 -4 -4 -3 -2 -2 ------------ Run | Yrd Mat Mat Mat Gar Mat Fac Gar Fac Fac Gar Fac Fac Was Fac Fac Gar Res Res Gar Used RIF Installer 3 | . . . . 1 . . 1 . . 1 . . . . . . . . . Robot Detection 1 | . . . . . . . 1 . . . . . . . . . . . . Program Shield 1 | . . . . . . . . . . 1 . . . . . . . . . Robots Hacked 48 | . . . . . 4 3 3 15 . 3 9 . . 11 . . . . . Non-combat 18 | . . . . . 1 3 . 5 . . 6 . . 3 . . . . . Combat 30 | . . . . . 3 . 3 10 . 3 3 . . 8 . . . . . Robot Hacks Applied 50 | . . . . . 4 4 3 15 . 3 10 . . 11 . . . . . find_chute 3 | . . . . . . 3 . . . . . . . . . . . . . find_fabricator 3 | . . . . . . . . 2 . . 1 . . . . . . . . drop_inventory 2 | . . . . . . . . . . . 2 . . . . . . . . link_fov 1 | . . . . . . . . . . . . . . 1 . . . . . overload_power 1 | . . . . . . . . . . . . . . 1 . . . . . amplify_resonance 7 | . . . . . . . . 1 . . 1 . . 5 . . . . . overwrite_iff 1 | . . . . . . . . 1 . . . . . . . . . . . formatsys_low 9 | . . . . . 1 . . 2 . . 4 . . 2 . . . . . formatsys_high 23 | . . . . . 3 1 3 9 . 3 2 . . 2 . . . . . Relay Couplers Released 44 | . . . . 9 1 . 9 2 . 16 1 . . 3 . 3 . . . Machine Destruction 44 | . . . . 9 1 . 9 2 . 16 1 . . 3 . 3 . . . Attached 21 | . . . . . 3 . 1 6 . 5 2 1 . 2 . 1 . . . Fabnet Peak Effective % . | . . . . . . . . . . . . . . . . . . . . Robots Rewired 5 | . . . . . . . . . . 5 . . . . . . . . . Allies Hacked 7 | . . . . . . 2 3 2 . . . . . . . . . . . Hacks Repelled . | . . . . . . . . . . . . . . . . . . . . Allies | -11 -10 -9 -8 -8 -8 -7 -7 -7 -6 -6 -6 -5 -5 -5 -4 -4 -3 -2 -2 -------- Run | Yrd Mat Mat Mat Gar Mat Fac Gar Fac Fac Gar Fac Fac Was Fac Fac Gar Res Res Gar Total Allies 47 | . 1 . . . 4 1 3 16 . 10 6 . 1 5 . . . . . Largest Group 12 | . 1 1 . . 2 3 3 10 1 9 12 10 5 2 1 1 . . . Highest-Rated Group 593 | . 10 9 . . 30 36 64 267 28 534 593 569 388 142 142 142 . . . Highest-Rated Ally 142 | . 10 9 . . 15 15 32 32 28 119 119 119 119 142 142 142 . . . Total Orders 6 | . . . . . . . . 1 . . 3 . . 2 . . . . . ROAM 1 | . . . . . . . . . . . . . . 1 . . . . . AID 5 | . . . . . . . . 1 . . 3 . . 1 . . . . . Ally Attacks 335 | . . . . . 16 2 11 167 . 27 45 15 20 11 . 21 . . . Total Damage 9506 | . . . . . 354 17 323 3455 . 1268 1539 426 535 552 . 1037 . . . Kills 74 | . . . . . 2 . 4 32 . 8 17 2 2 2 . 5 . . . Allies Corrupted 2 | . . . . . . . . 1 . . 1 . . . . . . . . Allies Melted . | . . . . . . . . . . . . . . . . . . . . Intel | -11 -10 -9 -8 -8 -8 -7 -7 -7 -6 -6 -6 -5 -5 -5 -4 -4 -3 -2 -2 ------- Run | Yrd Mat Mat Mat Gar Mat Fac Gar Fac Fac Gar Fac Fac Was Fac Fac Gar Res Res Gar Active Infowar (turns) 4134 | 83 849 676 . . . 491 . 457 . . . . . 1344 68 166 . . . Sensors 2395 | . . . . . . 490 . 457 . . . . . 1344 68 36 . . . Terrain 280 | . . . . . . . . . . . . . . 150 . 130 . . . Seismic 1760 | 83 849 676 . . . 152 . . . . . . . . . . . . . Robot Analysis Total . | . . . . . . . . . . . . . . . . . . . . Derelict Logs Recovered . | . . . . . . . . . . . . . . . . . . . . Drone Launches . | . . . . . . . . . . . . . . . . . . . . Drone Recoveries . | . . . . . . . . . . . . . . . . . . . . Exploration | -11 -10 -9 -8 -8 -8 -7 -7 -7 -6 -6 -6 -5 -5 -5 -4 -4 -3 -2 -2 ------------- Run | Yrd Mat Mat Mat Gar Mat Fac Gar Fac Fac Gar Fac Fac Was Fac Fac Gar Res Res Gar Turns Passed 19338 | 170 849 1818 148 1261 1360 755 1111 4272 31 2443 1689 226 151 1836 68 372 202 534 42 Spaces Moved 9870 | 122 554 794 84 708 681 473 467 2193 16 957 1004 125 93 728 39 191 192 375 74 Core 267 | 6 . . . . . . . . . . . . . 1 . 71 8 107 74 Treads 3112 | 3 73 76 . . 42 2 . 3 . 802 1004 125 34 593 39 120 . 196 . Legs 6 | . . . . . . . . . . 1 . . . . . . . 5 . Wheels 6485 | 113 481 718 84 708 639 471 467 2190 16 154 . . 59 134 . . 184 67 . Hover . | . . . . . . . . . . . . . . . . . . . . Flight . | . . . . . . . . . . . . . . . . . . . . Fastest Speed 50 | 50 95 135 120 120 120 135 135 145 145 145 145 145 145 115 162 50 50 50 50 Average Speed 151 | 90 122 158 123 120 146 136 172 165 145 203 145 145 154 162 162 138 97 104 50 Slowest Speed 1750 | 160 200 480 150 195 490 490 210 400 160 540 145 145 160 1750 162 1500 115 180 50 Overloaded Moves . | . . . . . . . . . . . . . . . . . . . . Propulsion Burnouts . | . . . . . . . . . . . . . . . . . . . . Robots Hopped . | . . . . . . . . . . . . . . . . . . . . Potential Cave-ins . | . . . . . . . . . . . . . . . . . . . . Cave-ins Triggered 1 | . . . . . . . . . . . . . . 1 . . . . . Exploration Rate (%) 37 | 6 95 81 9 59 54 12 53 62 1 96 27 3 70 30 2 43 7 10 27 Regions Visited 19 Branch Regions . Pre-discovered Areas . | . . . . . . . . . . . . . . . . . . . . Known Exits Taken 6 | . . . 1 . 1 1 . . 1 . . . . . 1 . . 1 . Unknown Exits Taken 7 | 1 1 1 . . . . . 1 . . 1 . . 1 . . 1 . . Scrap Searched . | . . . . . . . . . . . . . . . . . . . . Spaces Dug 15 | . . . . . . . . 1 . 1 2 7 . 4 . . . . . Terrain Destroyed 233 | . . . . . . . 15 1 . 137 2 16 . 52 . 2 . 8 . Melee 10 | . . . . . . . . 1 . 1 2 3 . 3 . . . . . Projectile 28 | . . . . . . . . . . 5 . 13 . 6 . 2 . 2 . AOE 194 | . . . . . . . 15 . . 131 . . . 43 . . . 5 . Terrain Rammed 1 | . . . . . . . . . . . . . . . . 1 . . . Walls Destroyed . | . . . . . . . . . . . . . . . . . . . . Machines Disabled . | . . . . . . . . . . . . . . . . . . . . Actions | -11 -10 -9 -8 -8 -8 -7 -7 -7 -6 -6 -6 -5 -5 -5 -4 -4 -3 -2 -2 --------- Run | Yrd Mat Mat Mat Gar Mat Fac Gar Fac Fac Gar Fac Fac Was Fac Fac Gar Res Res Gar Total 12842 | 151 648 1149 114 979 918 529 644 2729 24 1276 1204 148 101 1190 44 240 202 473 79 Wait 1354 | 3 24 155 12 111 117 6 44 371 4 57 135 1 6 257 6 10 . 34 1 Move 9848 | 121 553 793 83 706 680 472 465 2192 15 955 1003 125 92 727 38 189 191 374 74 Hop . | . . . . . . . . . . . . . . . . . . . . Pick Up 145 | 3 9 19 1 18 10 4 14 14 . 23 9 . 1 11 . 3 1 5 . Fast Attach 82 | 7 . 1 1 6 3 . . 3 . 15 . . . 22 . 2 8 14 . Attach 58 | . . 2 1 3 5 2 3 5 2 11 2 1 1 18 . . . 2 . Detach 18 | . . . . . . . 2 2 . 4 . . . 6 . . . 4 . Swap 241 | 2 12 31 5 16 20 13 19 39 1 31 8 9 . 22 . 3 . 10 . Drop 148 | . 7 24 3 20 11 3 12 16 2 30 8 . 1 2 . . 2 7 . Fire 666 | 14 43 109 7 62 57 3 57 55 . 99 25 9 . 82 . 25 . 19 . Melee 139 | . . . . 6 14 26 12 23 . 3 13 3 . 39 . . . . . Ram 6 | 1 . 1 1 . . . . . . 1 . . . 1 . 1 . . . Kick . | . . . . . . . . . . . . . . . . . . . . Crush 15 | . . 3 . . . . 5 1 . . 1 . . 1 . . . 4 . Escape Stasis 73 | . . . . 31 . . 11 8 . 10 . . . 2 . 7 . . 4 Rewire 38 | . . . . . 1 . . . . 37 . . . . . . . . . Trap 11 | . . 11 . . . . . . . . . . . . . . . . . Miscellaneous . | . . . . . . . . . . . . . . . . . . . . Route ------- -11/Scrapyard -10/Materials (discovered 5 exits: *Mat x3 / [*Min x2]) -9/Materials (discovered 7 exits: *Mat x3 / [*Min x2] / [*Sto x2]) -8/Materials -8/Garrison (discovered 3 exits: *Mat x3) -8/Materials (discovered 3 exits: *Fac x3) -7/Factory (discovered 2 exits: *Low / Gar) -7/Garrison (discovered 4 exits: *Fac x4) -7/Factory (discovered 2 exits: *Fac / *Low) -6/Factory -6/Garrison (discovered 3 exits: *Fac x3) -6/Factory (discovered 2 exits: *Fac / [*Low]) -5/Factory -5/Waste -5/Factory -4/Factory -4/Garrison -3/Research -2/Research -2/Garrison History --------- Turn | Location | Event 12 | -11/Scrapyard | Discovered new exit (range 16) 171 | -11/Scrapyard | Entered Materials 228 | -10/Materials | Discovered new exit (range 5) 317 | -10/Materials | Build established: Mutant 327 | -10/Materials | Discovered new exit (range 3) 414 | -10/Materials | Discovered new exit (range 15) 535 | -10/Materials | Discovered new exit (range 12) 704 | -10/Materials | Learned Storage trap positions 743 | -10/Materials | Learned location of 2 exits from Mines 773 | -10/Materials | Learned Storage non-interactive machine intel 791 | -10/Materials | Loaded intel: 2 trap records 857 | -10/Materials | Learned location of 1 exit from Storage 980 | -10/Materials | Discovered new exit (range 15) 1020 | -10/Materials | Entered another Materials area 1020 | -9/Materials | Accompanied by 1 ally 1020 | -9/Materials | Evolved 2 slots: Propulsion x2 1022 | -9/Materials | Discovered new exit (range 7) 1437 | -9/Materials | Discovered new exit (range 5) 1541 | -9/Materials | Discovered new exit (range 16) 1868 | -9/Materials | Discovered new exit (range 10) 1889 | -9/Materials | Discovered new exit (range 15) 1991 | -9/Materials | Repaired Hrd. Light Armor Plating 2220 | -9/Materials | First assault squad dispatched 2403 | -9/Materials | Discovered new exit (range 16) 2741 | -9/Materials | Discovered new exit (range 15) 2838 | -9/Materials | Entered another Materials area 2838 | -8/Materials | Evolved 2 slots: Utility x2 2916 | -8/Materials | Garrison activated, responded to threat 2983 | -8/Materials | Identified exit to Garrison 2986 | -8/Materials | Entered Garrison 3154 | -8/Garrison | Triggered checkpoint 3163 | -8/Garrison | Garrison Relay disabled 3368 | -8/Garrison | Triggered checkpoint 3464 | -8/Garrison | Triggered checkpoint 3570 | -8/Garrison | Discovered new exit (range 10) 3705 | -8/Garrison | Discovered new exit (range 19) 3705 | -8/Garrison | Discovered new exit (range 61) 3705 | -8/Garrison | Discovered new exit (range 47) 3806 | -8/Garrison | Triggered checkpoint 3840 | -8/Garrison | Garrison Relay disabled 3984 | -8/Garrison | Installed Relay Interface Framework 4247 | -8/Garrison | Entered Materials 4294 | -8/Materials | Build established: Bothacker-Mutant 5030 | -8/Materials | Repaired Arm. Wheel 5162 | -8/Materials | Discovered new exit (range 16) 5280 | -8/Materials | Discovered new exit (range 3) 5446 | -8/Materials | Identified exit to Factory 5590 | -8/Materials | Learned Factory stockpile data 5607 | -8/Materials | Entered Factory 5607 | -7/Factory | Accompanied by 2 allies 5607 | -7/Factory | Evolved 2 slots: Utility x2 5910 | -7/Factory | Discovered new exit (range 8) 5918 | -7/Factory | Identified exit to Lower Caves 6360 | -7/Factory | Identified exit to Garrison 6362 | -7/Factory | Entered Garrison 6362 | -7/Garrison | Accompanied by 3 allies 6379 | -7/Garrison | Discovered new exit (range 69) 6379 | -7/Garrison | Discovered new exit (range 85) 6379 | -7/Garrison | Discovered new exit (range 67) 6379 | -7/Garrison | Discovered new exit (range 97) 6528 | -7/Garrison | Triggered checkpoint 6598 | -7/Garrison | Garrison Relay disabled 6705 | -7/Garrison | Triggered checkpoint 6788 | -7/Garrison | Triggered checkpoint 6847 | -7/Garrison | Expanded RIF knowledge: Robot Detection 6914 | -7/Garrison | Triggered checkpoint 7009 | -7/Garrison | Garrison Relay disabled 7198 | -7/Garrison | Identified exit to Factory 7416 | -7/Garrison | Triggered checkpoint 7473 | -7/Garrison | Entered Factory 7473 | -7/Factory | Accompanied by 3 allies 10580 | -7/Factory | Fabricated H-55 Commando (x2) 10726 | -7/Factory | Discovered exit to Lower Caves (range 16) 10888 | -7/Factory | Lost 3 allies 10996 | -7/Factory | Fabricated H-55 Commando? 11543 | -7/Factory | Discovered new exit (range 14) 11713 | -7/Factory | P-60 Hacker assimilated allied Guardian 4c 11745 | -7/Factory | Entered another Factory area 11745 | -6/Factory | Accompanied by 1 ally 11745 | -6/Factory | Evolved 2 slots: Utility x2 11746 | -6/Factory | Lost 3 allies 11766 | -6/Factory | Identified exit to Garrison 11776 | -6/Factory | Entered Garrison 11776 | -6/Garrison | Accompanied by 1 ally 11863 | -6/Garrison | Expanded RIF knowledge: Program Shield 11896 | -6/Garrison | Triggered checkpoint 12052 | -6/Garrison | Phase Generator disabled 12088 | -6/Garrison | Triggered checkpoint 12148 | -6/Garrison | Triggered checkpoint 12221 | -6/Garrison | Lost 5 parts (1n2u2w) 12261 | -6/Garrison | Triggered checkpoint 12306 | -6/Garrison | Lost 4 parts (1p1n1u1w) 12365 | -6/Garrison | Lost 3 parts (1n1u1w) 12424 | -6/Garrison | Garrison Relay disabled 12501 | -6/Garrison | Spotted Executioner 12501 | -6/Garrison | Spotted Executioner 12517 | -6/Garrison | Destroyed Executioner 12529 | -6/Garrison | Destroyed Executioner 12549 | -6/Garrison | Rewired Executioner 12557 | -6/Garrison | Rewired Executioner 12918 | -6/Garrison | Garrison Relay disabled 13078 | -6/Garrison | Found embedded Infiltrators 13101 | -6/Garrison | Discovered new exit (range 12) 13110 | -6/Garrison | Triggered checkpoint 13142 | -6/Garrison | Triggered checkpoint 13174 | -6/Garrison | Garrison Relay disabled 13664 | -6/Garrison | Triggered checkpoint 13730 | -6/Garrison | Spotted B-75 Beast 13732 | -6/Garrison | Discovered new exit (range 13) 13745 | -6/Garrison | Allies destroyed B-75 Beast 13886 | -6/Garrison | Triggered checkpoint 13922 | -6/Garrison | Triggered checkpoint 13991 | -6/Garrison | Garrison Relay disabled 14159 | -6/Garrison | Discovered new exit (range 12) 14219 | -6/Garrison | Entered Factory 14219 | -6/Factory | Accompanied by 9 allies 15441 | -6/Factory | Discovered new exit (range 10) 15660 | -6/Factory | Fabricated Arm. Huge Wheel (x2) 15778 | -6/Factory | Discovered new exit (range 15) 15908 | -6/Factory | Entered another Factory area 15908 | -5/Factory | Accompanied by 10 allies 15908 | -5/Factory | Evolved 2 slots: Utility x2 16134 | -5/Factory | Sucked down chute 16134 | -5/Factory | Entered Waste 16134 | -5/Waste | Met up with 1 ally sucked down the chute earlier 16149 | -5/Waste | EMP discharged 16170 | -5/Waste | Spotted C-40 Crusher 16184 | -5/Waste | Spotted C-40 Crusher 16185 | -5/Waste | Spotted C-40 Crusher 16197 | -5/Waste | Spotted C-40 Crusher 16198 | -5/Waste | Crushed by Compactor (1 part destroyed) 16240 | -5/Waste | Spotted C-40 Crusher 16242 | -5/Waste | Spotted C-40 Crusher 16244 | -5/Waste | 2 allies followed down the chute 16249 | -5/Waste | EMP discharged 16249 | -5/Waste | System corruption reached 10% 16264 | -5/Waste | 7 allies followed down the chute 16271 | -5/Waste | Discovered new exit (range 10) 16285 | -5/Waste | Entered Factory 16301 | -5/Factory | Lost 6 allies 16750 | -5/Factory | Lost 4 parts (2n2u) 16931 | -5/Factory | Core integrity fell below 50% 16938 | -5/Factory | Lost 3 parts (1p2u) 17098 | -5/Factory | Cargo convoy interrupted 17539 | -5/Factory | Crushed by falling debris 17741 | -5/Factory | Fabricated A-02 Transporter (x1) 17767 | -5/Factory | Lost 4 parts (1p2n1u) 18082 | -5/Factory | Discovered new exit (range 12) 18121 | -5/Factory | Entered another Factory area 18121 | -4/Factory | Accompanied by 1 ally 18121 | -4/Factory | Evolved 2 slots: Utility x2 18183 | -4/Factory | Identified exit to Garrison 18189 | -4/Factory | Entered Garrison 18189 | -4/Garrison | Accompanied by 1 ally 18221 | -4/Garrison | Triggered checkpoint 18255 | -4/Garrison | Garrison Relay disabled 18392 | -4/Garrison | Spotted B-86 Titan 18396 | -4/Garrison | Triggered checkpoint 18414 | -4/Garrison | Triggered checkpoint 18426 | -4/Garrison | Destroyed B-86 Titan 18453 | -4/Garrison | Lost 5 parts (2n3u) 18491 | -4/Garrison | Triggered checkpoint 18505 | -4/Garrison | Triggered checkpoint 18521 | -4/Garrison | Released all parts (4) 18525 | -4/Garrison | Core integrity fell below 50% 18545 | -4/Garrison | Core integrity fell below 20% 18549 | -4/Garrison | Triggered checkpoint 18552 | -4/Garrison | Lost 10 parts (1p2n2u5w) 18555 | -4/Garrison | Discovered new exit (range 10) 18561 | -4/Garrison | Entered Research 18561 | -3/Research | Evolved 2 slots: Utility x2 18752 | -3/Research | Discovered new exit (range 11) 18763 | -3/Research | Entered another Research area 18763 | -2/Research | Evolved 2 slots: Utility x2 18825 | -2/Research | Build established: Mutant 19144 | -2/Research | System corruption reached 10% 19171 | -2/Research | System corruption reached 30% 19241 | -2/Research | Found Prototype Reactor 19241 | -2/Research | Identified Zero-point Reactor 19244 | -2/Research | Released all parts (8) 19297 | -2/Research | Identified exit to Garrison 19297 | -2/Research | Entered Garrison 19318 | -2/Garrison | Spotted B-90 Cyclops 19321 | -2/Garrison | Triggered checkpoint 19327 | -2/Garrison | Core integrity fell below 50% 19328 | -2/Garrison | Triggered checkpoint 19333 | -2/Garrison | Triggered checkpoint 19335 | -2/Garrison | Core integrity fell below 20% 19338 | -2/Garrison | Triggered checkpoint 19339 | -2/Garrison | Destroyed by B-90 Cyclops with Nova Cannon Last Messages --------------- 19321_ Beams of light sweep through the air. An alarm sounds. 19321_ Triggered Stasis Trap. 19321_ A bubble of rippling energy engulfs the area. 19321_ Field strength at 94. 19321_ Field strength at 88. 19322_ Field strength at 58. 19323_ Field strength at 35. 19324_ Field strength at 12. 19325_ Stasis field depleted. 19328_ Garrison Door breached. 19328_ Beams of light sweep through the air. An alarm sounds. 19329_ B-90 Cyclops activates siege mode. 19329_ Penetrated by Slug. 19330_ System corrupted: Energy discharge (-30). 19333_ Garrison Door breached. 19333_ Beams of light sweep through the air. An alarm sounds. Map ----- +----------------------------------------------------+ | ???????? ????????????????????????????????????????? | | ???????? ????????????????????????????????????????? | | ???????# #???????????????????????????????????????? | | ???????# #???????????????????????????????????????? | | ???????# #???????????????????????????????????????? | | ???????# #???????????????????????????????????????? | | ???????# #???????????????????????????????????????? | | ???????# #???????????????????????????????????????? | | ######## #######?????????????????????????????????? | | #?????????????????????????????????? | | #?????????????????????????????????? | | ### ######## #?????????????????????????????????? | | ??# #??????# #?????????????????????????????????? | | ??# #??????# #?????????????????????????????????? | | ??# #??????# #?????????????????????????????????? | | ??# #??????# #?????????????????????????????????? | | ??# #??????# #######???????????????????????????? | | ??# #??????# ## #???????????????????????????? | | ??# #?????## "# ########### ????????????????? | | ??# ####### ????????????????? | | ??# ????????????????? | | ??# ^ ????????????????? | | ??########## ## ^## ####???????????????????? | | ?????????### ## ## ###????????????????????? | | ?????????# BB g#????????????????????? | | ?????????# Y BB ^ @ #????????????????????? | | ?????????# g#????????????????????? | | ?????????# Y s g#????????????????????? | | ?????????### ## s## s ###????????????????????? | | ??????????#" ## ##s #??????????????????????? | | ??? # #??????????????????????? | | # ; ?????????????????????? | | ??? #####?# ###????????????????????? | | ??#????????# ## ## ##??????????????????????? | | ???????????# ## g ## #???????????????????????? | | ???????????# ######## #???????????????????????? | | ???????????# #??????# #???????????????????????? | | ???????????# #??????# #???????????????????????? | | ???????????# #??????# #???????????????????????? | | ???????????# #??????# #???????????????????????? | | ???????????# #??????# #???????????????????????? | | ??????????? ???????# ???????????????????????? | | ??????????? ???????# ???????????????????????? | | ??????????? ????????###???????????????????????? | | ???????????####??????????????????????????????????? | | ?????????????????????????????????????????????????? | | ?????????????????????????????????????????????????? | | ?????????????????????????????????????????????????? | | ?????????????????????????????????????????????????? | | ?????????????????????????????????????????????????? | +----------------------------------------------------+ Best States ------------- Heat Dissipation 97 Energy Generation 25 Energy Capacity 900 Matter Stores 300 Matter Capacity 300 Sight Range 16 Robot Scan Range 15 Terrain Scan Range 20 Terrain Scan Density 10 Corruption Block 15 Armor Coverage 450 Core Shielding 20 Evasion (%) 50 Targeting Accuracy 8 Target Analysis 6 Core Analysis 9 Recoil Reduction 4 Offensive Hacking 12 Relay Coupler Types 4 Relay Coupler Value 103 Authchip Count 6 Item Schematics ----------------- Arm. Huge Wheel | -7/Factory | Scanalyzed Arm. Wheel | -6/Factory | Hacked Robot Schematics ------------------ H-55 Commando | -7/Factory | Hacked Y-54 Guardian | -7/Factory | Hacked Fabricated ------------ H-55 Commando | x2 | -7/Factory | Authchip H-55 Commando | x2 | -7/Factory Arm. Huge Wheel | x2 | -6/Factory | Authchip A-02 Transporter | x1 | -5/Factory | Preloaded Repaired ---------- Hrd. Light Armor Plating | 74% | -9/Materials Arm. Wheel | 12% | -8/Materials Studied --------- None Alien Tech Used ----------------- None Achievements -------------- Hack The Planet Hackathon Mindtrick Not Today, Chutes Official Business Oppo Buddy Satisfying You Will Be Upgraded Challenges ------------ None Game ------ Seed DisruptionImprinterGenerator Manual? 0 Play Time 02:41:18 Cumulative 248.6 hours Start 2025.11.07 @ 19:00:03 End 2025.11.08 @ 21:31:46 Sessions 7 Manual Loads 0 Difficulty Rogue Special Mode None Game No. 380 Rogue 378 Adventurer 0 Explorer 2 Win Type - Total 5 Types 3/0/1/1/0/0/0/0/0/0 Lore% 54 Gallery% 63 Achievement% 45 Wizard Run 0 Options --------- Layout 2 ASCII 0 Keyboard 1 Movement Arrows Keybinds 0 Fullscreen 1 Font 28/SmallcapsGlow Map View 50x49 Zoom Use 0% Tactical HUD 1 Map Filters NONE Filters NONE Steam 1 RUN: c308f5bd-7bca-4b02-a540-5cc6581f81f0